fUSD/lending_fUSD_20250804
["ID","MTS","AMOUNT","RATE_DAILY","PERIOD"]
[377217864,1754299837683,-1036444.52640042,0.00019,2]
[377217865,1754299837693,-290.90298831,0.00019,2]
[377217866,1754299837703,-151.0,0.00019,2]
[377217867,1754299837713,-290.66533039,0.00019,2]
[377217868,1754299837723,-349.57803601,0.0001901,7]
[377217869,1754299837734,-250.0,0.00019045,2]
[377217870,1754299837745,-1000.0,0.00019045,4]
[377217871,1754299837755,-300.0,0.00019089,2]
[377217872,1754299837766,-300.0,0.00019089,2]
[377217873,1754299837777,-500.0,0.00019178,2]
[377217874,1754299837787,-205.33854001,0.00019178,2]
[377217875,1754299837798,-250.0,0.00019396,2]
[377217876,1754299837809,-1000.0,0.00019396,4]
[377217877,1754299837819,-244.12010438,0.0001975,2]
[377217878,1754299837831,-250.03,0.00019757,2]
[377217879,1754299837842,-300.0,0.00019812,2]
[377217880,1754299837852,-17020.87059306,0.000199,2]
[377217881,1754299837862,-14586.94128021,0.00019956,2]
[377217882,1754299837873,-514.0,0.0001997,2]
[377217883,1754299837885,-76858.3491358,0.00019985,2]
[377217884,1754299837897,-150.94,0.0001999,2]
[377217885,1754299837907,-150.94,0.0001999,2]
[377217886,1754299837919,-150.94,0.0001999,2]
[377217887,1754299837928,-178.26094196,0.0001999,2]
[377217888,1754299837938,-6373.76967485,0.0002,20]
[377217889,1754299837948,-16355.25830162,0.0002,14]
[377217890,1754299837958,-7910.45342409,0.0002,3]
[377217891,1754299837968,-90074.1416123,0.0002,2]
[377217892,1754299837978,-215.78900681,0.00020279,2]
[377217893,1754299837988,-500.0,0.00020279,2]
[377217894,1754299837998,-188.73542494,0.00020279,2]
[377217895,1754299838008,-168.47760435,0.00020279,2]
[377217896,1754299838018,-500.0,0.00020279,2]
[377217897,1754299838029,-500.0,0.00020279,2]
[377217898,1754299838041,-500.0,0.00020279,2]
[377217899,1754299838051,-500.0,0.00020279,2]
[377217900,1754299838062,-505.3172505,0.00020279,2]
[377217901,1754299838072,-500.0,0.00020279,2]
[377217902,1754299838082,-500.0,0.00020279,2]
[377217903,1754299838092,-500.0,0.00020279,2]
[377217904,1754299838103,-178.08171718,0.00020279,2]
[377217905,1754299838114,-500.0,0.00020279,2]
[377217906,1754299838125,-500.0,0.00020279,2]
[377217907,1754299838135,-391.35211806,0.00020279,2]
[377217908,1754299838147,-500.0,0.00020279,2]
[377217909,1754299838157,-500.0,0.00020279,2]
[377217910,1754299838168,-19750.59,0.0002028,2]
[377217911,1754299838178,-244.12010438,0.000206,2]
[377217912,1754299838187,-150.94,0.0002069,2]
[377217913,1754299838198,-22156.04666344,0.000207,2]
[377217914,1754299838209,-167.59,0.00020713,2]
[377217915,1754299838221,-4852.17,0.00020747,2]
[377217916,1754299838232,-1680.0,0.0002081,2]
[377217917,1754299838242,-300.0,0.000209,2]
[377217918,1754299838252,-300.0,0.000209,2]
[377217919,1754299838262,-250.0,0.000209,2]
[377217920,1754299838272,-1000.0,0.000209,4]
[377217921,1754299838282,-300.0,0.000209,2]
[377217922,1754299838291,-1166.83339982,0.00021,2]
[377217923,1754299838302,-192.58306578,0.00021,2]
[377217924,1754299838312,-417.0,0.000211,2]
[377217925,1754299838323,-152.17,0.00021178,2]
[377217926,1754299838333,-204.03936336,0.00021288,4]
[377217927,1754299838344,-150.0,0.0002134,2]
[377217928,1754299838355,-525.47806251,0.00021412,2]
[377217929,1754299838366,-669.72694242,0.00021484,2]
[377217930,1754299838376,-217.10620115,0.000215,2]
[377217931,1754299838387,-813.97582232,0.00021557,2]
[377217932,1754299838398,-958.22470222,0.00021629,2]
[377217933,1754299838413,-1102.47358213,0.00021701,2]
[377217934,1754299838423,-500.0,0.00021717,2]
[377217935,1754299838433,-500.0,0.00021717,2]
[377217936,1754299838443,-500.0,0.00021717,2]
[377217937,1754299838453,-500.4582055,0.00021717,2]
[377217938,1754299838464,-500.0,0.00021717,2]
[377217939,1754299838474,-168.74650888,0.00021717,2]
[377217940,1754299838485,-500.0,0.00021717,2]
[377217941,1754299838495,-502.98137899,0.00021717,2]
[377217942,1754299838505,-175.14834869,0.00021717,2]
[377217943,1754299838518,-500.0,0.00021717,2]
[377217944,1754299838528,-500.0,0.00021717,2]
[377217945,1754299838537,-503.12417031,0.00021717,2]
[377217946,1754299838547,-500.0,0.00021717,2]
[377217947,1754299838556,-500.0,0.00021717,2]
[377217948,1754299838568,-164.32956413,0.00021717,2]
[377217949,1754299838579,-1246.72246203,0.00021773,2]
[377217950,1754299838589,-1390.97134194,0.00021846,2]
[377217951,1754299838599,-1108.1005,0.0002189,2]
[377217952,1754299838609,-5000.0,0.00021918,2]
[377217953,1754299838618,-150.0,0.00021918,2]
[377217954,1754299838629,-1535.22022184,0.00021918,2]
[377217955,1754299838641,-1542.04,0.00021924,2]
[377217956,1754299838652,-500.0,0.00021973,2]
[377217957,1754299838664,-500.0,0.00021973,2]
[377217958,1754299838675,-500.0,0.00021973,2]
[377217959,1754299838686,-500.0,0.00021973,2]
[377217960,1754299838696,-500.0,0.00021973,2]
[377217961,1754299838706,-500.0,0.00021973,2]
[377217962,1754299838715,-500.0,0.00021973,2]
[377217963,1754299838725,-1679.46910175,0.0002199,2]
[377217964,1754299838736,-150.94,0.0002199,2]
[377217965,1754299838746,-150.94,0.0002199,2]
[377217966,1754299838757,-150.94,0.0002199,2]
[377217967,1754299838768,-150.94,0.0002199,2]
[377217968,1754299838780,-150.94,0.0002199,2]
[377217969,1754299838789,-228807.49697073,0.00022,4]
[377217970,1754299838800,-572.57830583,0.00022011,2]
[377217971,1754299838811,-500.0,0.00022145,2]
[377217972,1754299838822,-500.0,0.00022145,2]
[377217973,1754299838834,-500.0,0.00022145,2]
[377217974,1754299838845,-500.0,0.00022145,2]
[377217975,1754299838856,-500.0,0.00022145,2]
[377217976,1754299838865,-500.0,0.00022145,2]
[377217977,1754299838875,-1000.0,0.00022265,2]
[377217978,1754299838885,-500.92915465,0.00022265,2]
[377217979,1754299838895,-503.31682931,0.00022265,2]
[377217980,1754299838905,-1000.0,0.00022265,2]
[377217981,1754299838915,-1000.0,0.00022265,2]
[377217982,1754299838925,-598.47354532,0.00022265,2]
[377217983,1754299838935,-361.76047926,0.00022265,2]
[377217984,1754299838945,-353.379,0.00022356,7]
[377217985,1754299838954,-958.8598355,0.00022521,2]
[377217986,1754299838964,-1000.0,0.00022521,2]
[377217987,1754299838975,-1000.0,0.00022521,2]
[377217988,1754299838985,-1000.0,0.00022521,2]
[377217989,1754299838997,-500.0,0.00022521,2]
[377217990,1754299839007,-506.22494701,0.00022521,2]
[377217991,1754299839019,-1000.0,0.00022521,2]
[377217992,1754299839029,-150.56,0.0002254,2]
[377217993,1754299839041,-2351.0,0.00022793,2]
[377217994,1754299839052,-259.66872081,0.00022813,2]
[377217995,1754299839061,-471.48204093,0.000229,2]
[377217996,1754299839071,-505.91722869,0.0002294,2]
[377217997,1754299839081,-500.0,0.0002294,2]
[377217998,1754299839094,-441.28308254,0.0002294,2]
[377217999,1754299839103,-500.0,0.0002294,2]
[377218000,1754299839113,-500.43177966,0.0002294,2]
[377218001,1754299839123,-500.0,0.0002294,2]
[377218002,1754299839132,-501.12938084,0.0002294,2]
[377218003,1754299839141,-500.0,0.0002294,2]
[377218004,1754299839151,-165.0,0.00023,5]
[377218005,1754299839161,-1500.0,0.00023068,2]
[377218006,1754299839170,-655.79867695,0.00023068,2]
[377218007,1754299839180,-1500.0,0.00023068,2]
[377218008,1754299839189,-564.97682582,0.00023068,2]
[377218009,1754299839199,-1000.0,0.00023488,2]
[377218010,1754299839208,-575.82222738,0.00023488,2]
[377218011,1754299839218,-1000.0,0.00023488,2]
[377218012,1754299839227,-2000.0,0.00023616,2]
[377218013,1754299839237,-2000.0,0.00023616,2]
[377218014,1754299839247,-150.94,0.0002399,2]
[377218015,1754299839257,-10000.01179844,0.00024,5]
[377218016,1754299839267,-1503.39759304,0.00024036,2]
[377218017,1754299839276,-1007.5082042,0.00024036,2]
[377218018,1754299839286,-602.68369718,0.00024164,2]
[377218019,1754299839295,-2500.0,0.00024164,2]
[377218020,1754299839305,-920.58635484,0.000245,2]
[377218021,1754299839315,-920.58635482,0.000245,2]
[377218022,1754299839324,-920.58635482,0.000245,2]
[377218023,1754299839334,-920.58635482,0.000245,2]
[377218024,1754299839344,-1501.87798061,0.0002455,2]
[377218025,1754299839353,-519.0,0.00024685,2]
[377218026,1754299839363,-920.58635482,0.00024687,2]
[377218027,1754299839373,-1630.80992889,0.00024712,2]
[377218028,1754299839382,-150.94,0.0002479,2]
[377218029,1754299839392,-150.94,0.0002479,2]
[377218030,1754299839402,-150.94,0.0002479,2]
[377218031,1754299839415,-150.94,0.0002479,2]
[377218032,1754299839424,-150.94,0.0002479,2]
[377218033,1754299839434,-150.94,0.0002479,2]
[377218034,1754299839444,-150.94,0.0002479,2]
[377218035,1754299839453,-150.94,0.0002479,2]
[377218036,1754299839463,-150.94,0.0002479,2]
[377218037,1754299839472,-467948.106712,0.000248,2]
[377218038,1754299839482,-150.94,0.0002489,2]
[377218039,1754299839492,-150.94,0.0002489,2]
[377218040,1754299839502,-150.94,0.0002489,2]
[377218041,1754299839512,-150.94,0.0002489,2]
[377218042,1754299839522,-150.94,0.0002489,2]
[377218043,1754299839532,-150.94,0.0002489,2]
[377218044,1754299839542,-150.94,0.0002489,2]
[377218045,1754299839552,-150.94,0.0002489,2]
[377218046,1754299839562,-377533.247624,0.000249,2]
[377218047,1754299839572,-3292.0,0.00024965,2]
[377218048,1754299839581,-1000.0,0.0002501,2]
[377218049,1754299839591,-572.57830583,0.00025122,2]
[377218050,1754299839602,-167.59,0.00025891,2]
[377218051,1754299839611,-1316.46363575,0.00026,2]
[377218052,1754299839621,-920.58635482,0.00026134,2]
[377218053,1754299839631,-471.48204093,0.000269,2]
[377218054,1754299839641,-3246.0,0.00027344,2]
[377218055,1754299839650,-500.0,0.00027397,2]
[377218056,1754299839770,-500.0,0.00027397,2]
[377218057,1754299839780,-500.0,0.00027397,2]
[377218058,1754299839790,-500.0,0.00027397,2]
[377218059,1754299839800,-500.0,0.00027397,2]
[377218060,1754299839810,-500.0,0.00027397,2]
[377218061,1754299839819,-500.0,0.00027397,2]
[377218062,1754299839829,-500.0,0.00027397,2]
[377218063,1754299839839,-500.0,0.00027397,2]
[377218064,1754299839849,-500.0,0.00027397,2]
[377218065,1754299839858,-500.0,0.00027397,2]
[377218066,1754299839868,-500.0,0.00027397,2]
[377218067,1754299839877,-466.94800078,0.00027397,2]
[377218068,1754299839887,-920.58635482,0.00027581,2]
[377218069,1754299839897,-4058.9910332,0.0002774,2]
[377218070,1754299839906,-151.1,0.0002784,3]
[377218071,1754299839916,-150.94,0.0002789,2]
[377218072,1754299839925,-150.94,0.0002789,2]
[377218073,1754299839935,-150.94,0.0002789,2]
[377218074,1754299839946,-150.94,0.0002789,2]
[377218075,1754299839956,-177328.39323316,0.000279,3]
[377218076,1754299839968,-811.55193165,0.0002816,2]
[377218077,1754299839978,-572.57830583,0.00028233,2]
[377218078,1754299839988,-258.15,0.00028263,30]
[377218079,1754299839997,-155.0,0.00028959,32]
[377218080,1754299840007,-920.58635482,0.00029028,2]
[377218081,1754299840017,-4058.9910332,0.00029852,2]
[377218082,1754299840025,-6306.76903718,0.000299,2]
[377218083,1754299840035,-9750.74784705,0.00029987,3]
[377218084,1754299840044,-799.999999,0.0003,2]
[377218085,1754299840054,-4567.82125064,0.0003,2]
[377218086,1754299840064,-200.0,0.00030137,5]
[377218087,1754299840073,-920.58635482,0.00030475,2]
[377218088,1754299840084,-3010.52659085,0.00030759,2]
[377218089,1754299840094,-3010.52659085,0.00030759,2]
[377218090,1754299840104,-3010.52659085,0.00030759,2]
[377218091,1754299840114,-258.15,0.00030826,30]
[377218092,1754299840123,-471.48204093,0.000309,2]
[377218093,1754299840134,-559.87144436,0.000309,120]
[377218094,1754299840144,-221.86,0.00031,2]
[377218095,1754299840154,-167.59,0.00031069,2]
[377218096,1754299840164,-4000.0,0.00031093,4]
[377218098,1754299840174,-1599.999998,0.0003121,2]
[377218100,1754299840184,-572.57830583,0.00031344,15]
[377218102,1754299840193,-811.55193162,0.00031908,2]
[377218104,1754299840204,-920.58635482,0.00031922,2]
[377218106,1754299840213,-4058.9910332,0.00031964,2]
[377218108,1754299840223,-564.31441995,0.00032877,7]
[377218110,1754299840232,-500.0,0.00032877,7]
[377218112,1754299840242,-500.0,0.00032877,7]
[377218114,1754299840252,-500.0,0.00032877,7]
[377218116,1754299840262,-265.32482353,0.00032877,7]
[377218118,1754299840271,-500.0,0.00032877,7]
[377218120,1754299840281,-150.94,0.0003289,2]
[377218122,1754299840290,-2821.29,0.000329,14]
[377218124,1754299840300,-4000.0,0.00032984,4]
[377218126,1754299840310,-1035.23925166,0.00033,120]
[377218128,1754299840319,-920.58635482,0.00033368,2]
[377218130,1754299840329,-258.15,0.00033388,30]
[377218132,1754299840338,-151.1,0.00033461,6]
[377218134,1754299840348,-492.04,0.000335,7]
[377218136,1754299840357,-2500.0,0.000338,10]
[377218138,1754299840367,-2500.0,0.00033809,10]
[377218140,1754299840377,-2500.0,0.00033818,10]
[377218142,1754299840386,-2500.0,0.00033826,10]
[377218144,1754299840396,-2500.0,0.00033835,10]
[377218146,1754299840407,-2500.0,0.00033844,10]
[377218148,1754299840417,-200.0,0.00034,30]
[377218150,1754299840427,-4058.9910332,0.00034076,2]
[377218152,1754299840436,-572.57830583,0.00034456,15]
[377218154,1754299840445,-920.58635482,0.00034815,2]
[377218156,1754299840454,-4000.0,0.00034874,4]
[377218157,1754299840464,-471.48204093,0.000349,2]
[377218158,1754299840473,-4712.2661658,0.00035,4]
[377218159,1754299840482,-1005.10856602,0.00035,30]
[377218160,1754299840491,-6066.0,0.000356,2]
[377218161,1754299840501,-811.55193162,0.00035656,2]
[377218162,1754299840510,-306.57686188,0.00035791,14]
[377218163,1754299840519,-258.15,0.0003595,60]
[377218164,1754299840528,-3000.0,0.00036,8]
[377218165,1754299840537,-4058.9910332,0.00036188,2]
[377218166,1754299840546,-920.58635482,0.00036262,2]
[377218167,1754299840556,-155.0,0.00036309,2]
[377218168,1754299840565,-155.0,0.00036309,5]
[377218169,1754299840574,-1010.34267191,0.00036309,10]
[377218171,1754299840584,-150.94,0.00036442,2]
[377218173,1754299840593,-17020.87059287,0.00036452,34]
[377218175,1754299840602,-5510.0,0.000366,3]
[377218176,1754299840612,-2821.29,0.000367,14]
[377218179,1754299840621,-4000.0,0.00036765,4]
[377218181,1754299840631,-3500.0,0.000369,13]
[377218182,1754299840640,-214.69,0.00037533,14]
[377218184,1754299840650,-572.57830583,0.00037567,15]
[377218186,1754299840659,-5510.0,0.000377,5]
[377218188,1754299840668,-920.58635482,0.00037709,2]
[377218191,1754299840678,-2122.52,0.00037736,120]
[377218193,1754299840687,-325.68,0.00037748,2]
[377218195,1754299840697,-3553.1224872,0.00038,8]
[377218196,1754299840706,-4058.9910332,0.00038301,2]
[377218199,1754299840716,-152.0,0.00038338,3]
[377218200,1754299840725,-258.15,0.00038513,60]
[377218202,1754299840735,-4000.0,0.00038656,8]
[377218205,1754299840744,-471.48204093,0.000389,2]
[377218206,1754299840754,-152.0,0.00039,120]
[377218208,1754299840763,-151.1,0.00039082,15]
[377218211,1754299840773,-920.58635482,0.00039156,2]
[377218213,1754299840783,-811.55193162,0.00039404,2]
[377218215,1754299840792,-325.68,0.00039479,2]
[377218217,1754299840802,-2821.29,0.000395,14]
[377218219,1754299840812,-492.04,0.000398,30]
[377218220,1754299840821,-150.94,0.0003999,2]
[377218223,1754299840831,-10000.0,0.0004,60]
[377218225,1754299840840,-190.74,0.0004,120]
[377218227,1754299840850,-206.42,0.0004,120]
[377218228,1754299840859,-433.30272908,0.0004,120]
[377218230,1754299840868,-2856.37795649,0.0004,30]
[377218232,1754299840878,-407.07572333,0.0004,120]
[377218234,1754299840887,-704.64900493,0.00040017,2]
[377218235,1754299840898,-500.0,0.00040273,5]
[377218236,1754299840907,-500.0,0.00040273,5]
[377218237,1754299840917,-500.0,0.00040273,5]
[377218238,1754299840929,-500.0,0.00040273,5]
[377218239,1754299840938,-526.77461878,0.00040273,5]
[377218240,1754299840948,-500.46973082,0.00040273,5]
[377218241,1754299840957,-23900.0,0.0004028,2]
[377218242,1754299840967,-152.0,0.000403,120]
[377218243,1754299840976,-180.53,0.00040397,2]
[377218244,1754299840986,-4058.9910332,0.00040413,15]
[377218245,1754299840996,-4000.0,0.00040546,8]
[377218246,1754299841006,-920.58635482,0.00040603,120]
[377218247,1754299841015,-572.57830583,0.00040678,15]
[377218248,1754299841025,-348.70301418,0.000408,60]
[377218249,1754299841034,-150.94,0.00040811,2]
[377218250,1754299841044,-1000.0,0.00040821,5]
[377218251,1754299841053,-1000.0,0.00040821,5]
[377218252,1754299841063,-1000.0,0.00040821,5]
[377218253,1754299841072,-1000.0,0.00040821,5]
[377218254,1754299841082,-170.0,0.00041,90]
[377218255,1754299841092,-2250.39811378,0.00041,7]
[377218256,1754299841101,-258.15,0.00041076,60]
[377218257,1754299841111,-150.94,0.00041086,2]
[377218258,1754299841120,-150.0,0.00041096,10]
[377218259,1754299841130,-500.0,0.00041096,10]
[377218260,1754299841140,-4000.0,0.00041096,30]
[377218261,1754299841162,-19999.99,0.00041096,2]
[377218262,1754299841172,-29999.99,0.00041096,30]
[377218263,1754299841181,-200.0,0.00041096,20]
[377218264,1754299841191,-325.68,0.00041209,120]
[377218265,1754299841200,-2821.29,0.000413,14]
[377218266,1754299841210,-1500.0,0.00041368,10]
[377218267,1754299841219,-1500.0,0.00041368,10]
[377218268,1754299841229,-1003.61191261,0.00041368,10]
[377218269,1754299841239,-1003.37853909,0.00041368,10]
[377218270,1754299841251,-152.0,0.00041603,4]
[377218271,1754299841262,-1000.21942331,0.00041644,10]
[377218272,1754299841272,-250.0,0.00041644,10]
[377218273,1754299841282,-178.52,0.00041645,14]
[377218274,1754299841292,-841.59890878,0.00041668,2]
[377218275,1754299841302,-160.0,0.00041668,2]
[377218276,1754299841311,-152.0,0.000417,120]
[377218277,1754299841321,-180.53,0.00041767,2]
[377218278,1754299841330,-503.48427415,0.00041916,10]
[377218279,1754299841340,-1004.71979515,0.00041916,10]
[377218280,1754299841349,-600.0,0.0004199,120]
[377218281,1754299841358,-492.04,0.00042,30]
[377218282,1754299841368,-920.58635482,0.00042049,120]
[377218283,1754299841377,-350.0,0.00042192,10]
[377218284,1754299841386,-250.0,0.000422,2]
[377218285,1754299841396,-900.0,0.000422,2]
[377218286,1754299841408,-590.0,0.000422,2]
[377218287,1754299841418,-221.85,0.00042247,14]
[377218288,1754299841428,-806.84059368,0.00042279,14]
[377218289,1754299841438,-4000.0,0.00042437,8]
[377218290,1754299841447,-4058.9910332,0.00042525,15]
[377218291,1754299841457,-511.0,0.00042554,10]
[377218292,1754299841466,-1000.0,0.00042594,14]
[377218293,1754299841475,-1000.0,0.00042605,14]
[377218294,1754299841485,-450.0,0.0004274,10]
[377218295,1754299841497,-1000.0,0.00042821,14]
[377218296,1754299841506,-471.48204093,0.000429,28]
[377218297,1754299841515,-325.68,0.00042939,120]
[377218298,1754299841525,-152.0,0.00043,120]
[377218299,1754299841534,-2821.29,0.00043,14]
[377218300,1754299841543,-400.0,0.00043,120]
[377218301,1754299841552,-1025.83590313,0.00043102,14]
[377218302,1754299841561,-811.55193162,0.00043152,2]
[377218303,1754299841570,-193.15940632,0.00043252,14]
[377218304,1754299841579,-550.0,0.00043288,10]
[377218305,1754299841588,-492.04,0.000433,30]
[377218306,1754299841597,-1000.0,0.00043327,14]
[377218307,1754299841607,-1000.0,0.00043439,30]
[377218308,1754299841616,-1000.0,0.00043439,30]
[377218309,1754299841625,-750.0,0.00043439,30]
[377218310,1754299841633,-1000.0,0.00043439,14]
[377218311,1754299841643,-920.58635482,0.00043496,120]
[377218312,1754299841652,-150.94,0.00043556,2]
[377218313,1754299841661,-150.0,0.00043566,30]
[377218314,1754299841670,-818.41,0.00043566,30]
[377218315,1754299841680,-466.93,0.00043566,30]
[377218316,1754299841689,-466.93,0.00043566,30]
[377218317,1754299841698,-466.93,0.00043566,30]
[377218318,1754299841707,-818.41,0.00043566,30]
[377218319,1754299841716,-466.93,0.00043566,30]
[377218320,1754299841725,-818.41,0.00043566,30]
[377218321,1754299841735,-466.93,0.00043566,30]
[377218322,1754299841745,-172.88,0.00043566,30]
[377218323,1754299841754,-165.39,0.00043566,30]
[377218324,1754299841764,-463.01,0.00043566,30]
[377218325,1754299841773,-372.85,0.00043566,30]
[377218326,1754299841782,-814.61,0.00043566,30]
[377218327,1754299841791,-165.39,0.00043566,30]
[377218328,1754299841800,-172.88,0.00043566,30]
[377218329,1754299841809,-172.88,0.00043566,30]
[377218330,1754299841819,-165.39,0.00043566,30]
[377218331,1754299841828,-165.39,0.00043566,30]
[377218332,1754299841838,-165.39,0.00043566,30]
[377218333,1754299841848,-165.39,0.00043566,30]
[377218334,1754299841857,-165.39,0.00043566,30]
[377218335,1754299841866,-165.39,0.00043566,30]
[377218336,1754299841875,-165.39,0.00043566,30]
[377218337,1754299841884,-536.97,0.00043566,30]
[377218338,1754299841894,-299.67,0.00043566,30]
[377218339,1754299841903,-511.0,0.0004358,10]
[377218340,1754299841913,-849.3163911,0.00043581,2]
[377218341,1754299841923,-215.3498226,0.00043596,14]
[377218342,1754299841932,-258.15,0.00043638,60]
[377218343,1754299841942,-572.57830583,0.00043789,15]
[377218344,1754299841951,-305.39721356,0.00043799,120]
[377218345,1754299841961,-171.95,0.0004382,2]
[377218346,1754299841971,-650.0,0.00043836,10]
[377218347,1754299841980,-849.3163911,0.0004386,2]
[377218348,1754299841990,-956.505,0.0004397,2]
[377218349,1754299841999,-1251.0,0.0004397,2]
[377218350,1754299842009,-6070.0,0.0004397,2]
[377218351,1754299842018,-1000.0,0.00044,120]
[377218352,1754299842028,-652.46739545,0.00044,120]
[377218353,1754299842038,-206.86235254,0.00044,120]
[377218354,1754299842047,-547.1938562,0.00044,120]
[377218355,1754299842056,-449.1960482,0.00044,120]
[377218356,1754299842066,-156.30268108,0.0004411,120]
[377218357,1754299842075,-849.3163911,0.00044111,2]
[377218358,1754299842085,-221.86,0.00044115,14]
[377218359,1754299842094,-193.15940632,0.00044248,14]
[377218360,1754299842104,-153.00328513,0.0004425,120]
[377218361,1754299842114,-152.0,0.000443,120]
[377218362,1754299842124,-2821.29,0.000443,14]
[377218363,1754299842133,-4000.0,0.00044328,8]
[377218364,1754299842142,-178.52,0.0004437,14]
[377218365,1754299842152,-750.0,0.00044384,10]
[377218366,1754299842161,-293.53544314,0.0004439,120]
[377218367,1754299842170,-30000.0,0.00044398,30]
[377218368,1754299842180,-336.39365751,0.000444,33]
[377218369,1754299842190,-1637.79877767,0.00044491,120]
[377218370,1754299842200,-511.0,0.00044606,10]
[377218371,1754299842209,-150.94,0.00044627,2]
[377218372,1754299842219,-849.3163911,0.00044632,2]
[377218373,1754299842229,-4058.9910332,0.00044637,15]
[377218374,1754299842239,-282.93,0.00044638,14]
[377218375,1754299842248,-325.68,0.0004467,120]
[377218376,1754299842258,-250.0,0.00044695,120]
[377218377,1754299842268,-200.0,0.00044695,2]
[377218378,1754299842277,-185.05,0.00044697,120]
[377218379,1754299842287,-151.1,0.00044703,120]
[377218380,1754299842297,-150.0,0.00044741,2]
[377218381,1754299842306,-150.0,0.0004475,2]
[377218382,1754299842316,-849.3163911,0.0004481,2]
[377218383,1754299842325,-150.0,0.00044811,2]
[377218384,1754299842335,-152.0,0.00044868,5]
[377218385,1754299842344,-1000.0,0.00044924,14]
[377218386,1754299842353,-852.19435681,0.00044932,10]
[377218387,1754299842363,-920.58635482,0.00044943,120]
[377218388,1754299842372,-150.94,0.0004499,2]
[377218389,1754299842382,-150.94,0.0004499,2]
[377218390,1754299842391,-50000.0,0.00045,45]
[377218391,1754299842400,-50000.0,0.00045,55]
[377218393,1754299842414,-1012.944029,0.00045,120]
[377218394,1754299842424,-1000.0,0.00045,120]
[377218395,1754299842434,-486.06739081,0.00045,120]
[377218396,1754299842444,-170.0,0.00045,90]
[377218397,1754299842455,-371.80953503,0.00045,120]
[377218398,1754299842464,-9254.2501511,0.00045,120]
[377218399,1754299842474,-524.48524192,0.00045,120]
[377218400,1754299842483,-400.0,0.00045,120]
[377218401,1754299842493,-209.95833796,0.00045,120]
[377218402,1754299842503,-1863.33514451,0.00045,120]
[377218403,1754299842512,-264.28950242,0.00045,120]
[377218404,1754299842521,-516.7055503,0.00045,120]
[377218405,1754299842531,-223.33369091,0.00045,120]
[377218406,1754299842540,-1168.5420667,0.00045,120]
[377218407,1754299842549,-505.22807118,0.00045,120]
[377218408,1754299842559,-1080.07696159,0.00045,30]
[377218409,1754299842568,-597.2141027,0.00045,10]
[377218410,1754299842577,-1000.0,0.00045,120]
[377218411,1754299842586,-160.0,0.00045,90]
[377218412,1754299842596,-211.425049,0.00045032,2]
[377218413,1754299842606,-1000.0,0.00045039,2]
[377218414,1754299842615,-849.3163911,0.00045086,2]
[377218415,1754299842625,-174.61,0.00045107,2]
[377218416,1754299842635,-150.0,0.00045119,2]
[377218417,1754299842644,-1000.0,0.00045133,14]
[377218418,1754299842653,-150.0,0.00045138,2]
[377218419,1754299842662,-628.40811724,0.00045146,6]
[377218420,1754299842671,-151.35,0.00045152,2]
[377218421,1754299842681,-234.68,0.00045152,2]
[377218422,1754299842690,-150.0,0.0004516,2]
[377218423,1754299842700,-150.0,0.00045179,2]
[377218424,1754299842710,-150.0,0.00045206,2]
[377218425,1754299842719,-150.0,0.0004521,2]
[377218426,1754299842729,-221.86,0.00045231,14]